Cogmind - Beta 13 @@@ ROGUE MODE // 2024.03.20 @ 01:19:30 Player: Desymo99 Result: Destroyed by as-73596 with Assembled Heavy Rifle Performance ------------- Evolutions (0) 0 Regions Visited (4) 800 Robots Destroyed (24) 120 Value Destroyed (571) 571 Prototype IDs (9) 180 Alien Tech Used (0) 0 Bonus (360) 360 TOTAL SCORE: 2031 Bonus ------- Follower Combat Kills 60 Aligned with FarCom 300 Cogmind --------- Core Integrity 0/250 Matter 300/300 Energy 36/100 System Corruption 11% Temperature Danger (499) Movement Walking (120) Location -9/Mines Parts ------- > --- POWER (1) -------- (None) > --- PROPULSION (2) --- Carbon-fiber Leg > --- UTILITY (2) ------ Signal Interpreter > --- WEAPON (2) ------- Guided Plasma Cannon > --- INVENTORY (5) ---- Deuterium Engine Visual Processing Unit Improved Terrain Scanner Improved Terrain Scan Processor Datajack Peak State ------------ > --- POWER ------------ Light Angular Momentum Engine > --- PROPULSION ------- Carbon-fiber Leg Carbon-fiber Leg > --- UTILITY ---------- Sensor Array Signal Interpreter > --- WEAPON ----------- Guided Plasma Cannon Rocket Launcher > --- INVENTORY -------- Deuterium Engine Visual Processing Unit Improved Terrain Scanner Improved Terrain Scan Processor Datajack [Rating: 24] Favorites ----------- Power Light Angular Momentum Engine Engine Light Angular Momentum Engine Propulsion Carbon-fiber Leg Leg Carbon-fiber Leg Wheel Wheel Utility Sensor Array Device Sensor Array Storage Small Storage Unit Processor Signal Interpreter Weapon Mining Laser Energy Cannon Guided Plasma Cannon Ballistic Gun Light Assault Rifle Launcher Rocket Launcher Special Weapon Mining Laser Special Melee Weapon Datajack Build | -11 -10 -10 -10 -9 ------- Run | Yrd Mat Min Exi Min Slots Evolved . | . . . . . Power . | . . . . . Propulsion . | . . . . . Utility . | . . . . . Weapon . | . . . . . Parts Attached 25 | 6 12 5 1 1 Power 5 | 1 2 2 . . Engine 5 | 1 2 2 . . Core . | . . . . . Reactor . | . . . . . Propulsion 4 | 2 . 2 . . Treads . | . . . . . Leg 2 | . . 2 . . Wheel 2 | 2 . . . . Hover . | . . . . . Flight . | . . . . . Utility 4 | 1 3 . . . Device 2 | . 2 . . . Storage 1 | 1 . . . . Processor 1 | . 1 . . . Hackware . | . . . . . Protection . | . . . . . Artifact . | . . . . . Weapon 12 | 2 7 1 1 1 Energy Gun . | . . . . . Energy Cannon 1 | . . . 1 . Ballistic Gun 4 | 2 2 . . . Ballistic Cannon . | . . . . . Launcher 5 | . 4 . . 1 Special Weapon 1 | . 1 . . . Impact Weapon . | . . . . . Slashing Weapon . | . . . . . Piercing Weapon . | . . . . . Special Melee Weapon 1 | . . 1 . . Unidentified Prototypes 1 | . . . 1 . Parts Lost 4 | . . . . 4 Power 1 | . . . . 1 Propulsion 1 | . . . . 1 Utility 1 | . . . . 1 Weapon 1 | . . . . 1 Highest Loss Streak 4 | . . . . 4 To Critical Strikes . | . . . . . Average Slot Usage (%) 98 | . 94 100 100 97 Engine 13 | . 14 14 14 13 Leg 18 | . . 23 28 27 Wheel 9 | . 28 4 . . Device 12 | . 10 14 14 13 Storage 3 | . 11 . . . Processor 10 | . 2 14 14 14 Energy Cannon 2 | . . . 3 14 Ballistic Gun 2 | . 9 . . . Launcher 5 | . 11 6 . . Special Weapon 8 | . 5 14 10 . Special Melee Weapon 7 | . . 7 14 12 Naked Turns . | . . . . . Heaviest Build 24 | 10 14 13 21 24 Greatest Support 30 | 20 20 30 30 30 Greatest Overweight (x) 1 | . . 1 . . Average Overweight (x) . | . . . . . Largest Inventory Capacity 8 | 8 8 5 5 5 Average Capacity 5 | 6 7 5 5 5 Most Carried 8 | . 8 5 5 5 Average Carried 4 | . 4 4 4 5 Final Capacity 8 | 8 5 5 5 5 Final Carried 5 | . 4 5 5 5 Class Distribution -------------------- 87% | Mutant 12% | Assassin Dominant Class ---------------- Mutant | -10/Materials Mutant | -10/Mines Mutant | -10/Exiles Assassin | -9/Mines Resources | -11 -10 -10 -10 -9 ----------- Run | Yrd Mat Min Exi Min Matter Collected 815 | 253 244 205 . 113 Remotely . | . . . . . Salvage Created 701 | . 293 99 . 309 Parts 48 | . 28 8 . 12 Haulers Intercepted . | . . . . . Recyclers Shooed . | . . . . . Parts Field Recycled . | . . . . . Retrieved Matter . | . . . . . Parts Self-Destructed . | . . . . . Prevented . | . . . . . Kills | -11 -10 -10 -10 -9 ------- Run | Yrd Mat Min Exi Min Combat Hostiles Destroyed 20 | . 10 . . 10 Guns 3 | . 3 . . . Cannons 10 | . . . . 10 AOE 7 | . 7 . . . Classes Destroyed 9 | . 5 1 . 3 Worker 1 | . . . . 1 Tunneler 2 | . . 2 . . Recycler 2 | . 1 1 . . Operator 1 | . 1 . . . Watcher 3 | . 3 . . . Swarmer 6 | . 6 . . . Grunt 7 | . 4 . . 3 Demolisher 2 | . . . . 2 Assembled 5 | . . . . 5 Best Kill Streak 8 | . 3 2 . 8 Combat Bots Only 7 | . 3 . . 7 Max Kills in Single Turn 3 | . 3 2 . 1 Gunslinging . | . . . . . Exploded 3 | . 3 . . . Melee . | . . . . . Uniques/NPCs Destroyed . | . . . . . Combat | -11 -10 -10 -10 -9 -------- Run | Yrd Mat Min Exi Min Hostile Shots Fired 52 | . 28 3 . 21 Missed 13 | . 8 . . 5 Damage Taken 860 | . 326 135 . 399 Core 260 | . 132 42 . 86 Absorbed by Shields . | . . . . . Regen/Repaired (Parts) 27 | . 27 . . . Core Remaining (%) 100 | 100 . . . . Volleys Fired 72 | . 55 . . 17 Largest 2 | . 2 . . 1 Hottest 120 | . 100 . . 120 Shots Fired 96 | . 78 2 . 16 Gun 47 | . 47 . . . Cannon 15 | . . . . 15 Launcher 14 | . 11 2 . 1 Special 20 | . 20 . . . Kinetic 47 | . 47 . . . Thermal 35 | . 20 . . 15 Explosive 14 | . 11 2 . 1 Electromagnetic . | . . . . . Robot Hit Streak 8 | . 6 2 . 8 Robot Miss Streak 4 | . 4 1 . 1 Penetration Max . | . . . . . Secondary Targets . | . . . . . Shots Hit Robots 52 | . 23 10 4 15 Core Hits 39 | . 23 4 . 12 Critical Kills . | . . . . . Critical Parts Destroyed . | . . . . . Critical Strikes . | . . . . . Melee Attacks 14 | . . 9 5 . Impact . | . . . . . Slashing . | . . . . . Piercing . | . . . . . Sneak Attacks 13 | . . 9 4 . Combat Hostiles . | . . . . . Follow-up Attacks . | . . . . . Damage Inflicted 1425 | . 763 112 . 550 Guns 178 | . 178 . . . Cannons 514 | . . . . 514 Explosions 733 | . 585 112 . 36 Melee . | . . . . . Ramming . | . . . . . Kinetic 178 | . 178 . . . Thermal 514 | . . . . 514 Explosive 733 | . 585 112 . 36 Electromagnetic . | . . . . . Impact . | . . . . . Slashing . | . . . . . Piercing . | . . . . . Highest Corruption 11 | . 8 8 8 11 Average Corruption 7 | . 4 8 8 8 Corruption Purged . | . . . . . Corruption Blocked . | . . . . . Effects 98 | . 15 35 29 19 Message Errors 27 | . 4 8 9 6 Matter Fused 22 | . 5 7 5 5 Heat Flow Errors 17 | . 3 10 2 2 Energy Discharges 11 | . 1 3 3 4 Data Loss (minor) 10 | . 1 3 6 . Data Loss (major) 4 | . 1 1 1 1 Misfires 2 | . . 2 . . Alerts 4 | . . 1 3 . Weapon Failures 1 | . . . . 1 Overload Shots . | . . . . . Overflow Damage 71 | . 45 . . 26 Projectiles 26 | . . . . 26 Explosions 45 | . 45 . . . Melee . | . . . . . Knockbacks . | . . . . . Impact . | . . . . . Kinetic . | . . . . . Secondary . | . . . . . Self-Inflicted Damage 170 | . 121 49 . . Shots 3 | . 2 1 . . Rammed . | . . . . . Targets Rammed . | . . . . . Kicked . | . . . . . Crushed . | . . . . . Highest Temperature 596 | . 272 260 184 596 Average Temperature 95 | . 49 83 78 176 Received Heat Transfer 103 | . 48 15 . 40 Effects 6 | . . . . 6 Short Circuit 1 | . . . . 1 Damage (minor) 1 | . . . . 1 Damage (major) 3 | . . . . 3 Damage (core) 1 | . . . . 1 Siege Activations . | . . . . . Robots Corrupted . | . . . . . Combat Hostiles . | . . . . . Parts Fried . | . . . . . Impact Corruptions . | . . . . . Robots Melted . | . . . . . Combat Hostiles . | . . . . . Parts Melted 1 | . . . . 1 Heat Transferred 1200 | . . . . 1200 Parts Sabotaged . | . . . . . Parts Stolen . | . . . . . Parts Stripped . | . . . . . Power Chain Reactions . | . . . . . Alert | -11 -10 -10 -10 -9 ------- Run | Yrd Mat Min Exi Min Peak Influence 357 | . 357 88 . 54 Initial 66 | . . 66 . . Average 116 | . 248 44 . 36 Maximum Alert Level 1 | . 1 . . . Low Security (%) 77 | 100 36 100 . 100 Level 1 22 | . 63 . . . Level 2 . | . . . . . Level 3 . | . . . . . Level 4 . | . . . . . Level 5 . | . . . . . High Security . | . . . . . Max Security . | . . . . . Squads Dispatched 2 | . 2 . . . Investigation 1 | . 1 . . . Extermination . | . . . . . Reinforcement 1 | . 1 . . . Assault . | . . . . . Garrison . | . . . . . Intercept . | . . . . . Searches Triggered . | . . . . . Construction Impeded . | . . . . . Haulers Reinforced . | . . . . . Active Scanning Responses . | . . . . . Cargo Convoy Interrupts . | . . . . . Stealth | -11 -10 -10 -10 -9 --------- Run | Yrd Mat Min Exi Min Distress Signals . | . . . . . Communications Jammed . | . . . . . Distress Signals . | . . . . . Times Spotted 37 | . 17 4 . 16 Peak Tracking Total 9 | . 3 2 . 9 Tactical Retreats . | . . . . . Traps | -11 -10 -10 -10 -9 ------- Run | Yrd Mat Min Exi Min Traps Triggered 6 | . 5 1 . . Indirectly . | . . . . . Trap Hack Attempts . | . . . . . Triggered . | . . . . . Disarmed . | . . . . . Reprogrammed . | . . . . . Reused . | . . . . . Traps Extracted . | . . . . . Installed . | . . . . . Triggered . | . . . . . Machines | -11 -10 -10 -10 -9 ---------- Run | Yrd Mat Min Exi Min Machines Disabled 5 | . 5 . . . Max in Single Turn 2 | . 2 . . . Machines Repaired . | . . . . . Machines Dismantled . | . . . . . Machines Sabotaged . | . . . . . Overloaded Fab Kills . | . . . . . Hacking | -11 -10 -10 -10 -9 --------- Run | Yrd Mat Min Exi Min Machines Accessed 7 | . 1 2 4 . Terminals 1 | . . 1 . . Fabricators . | . . . . . Repair Stations 1 | . 1 . . . Recycling Units . | . . . . . Scanalyzers . | . . . . . Garrison Access . | . . . . . Total Hacks 54 | . 3 2 49 . Successful 52 | . 2 1 49 . Failed 2 | . 1 1 . . Catastrophic . | . . . . . Database Lockouts . | . . . . . Manual 2 | . . 1 1 . Terminals 1 | . . 1 . . Fabricators . | . . . . . Repair Stations 3 | . 3 . . . Recycling Units . | . . . . . Scanalyzers . | . . . . . Garrison Access . | . . . . . Terminal Hacks 50 | . . 1 49 . Record 49 | . . . 49 . Open Door 1 | . . 1 . . Fabricator Hacks . | . . . . . Repair Station Hacks 2 | . 2 . . . Scan Component 1 | . 1 . . . Repair 1 | . 1 . . . Recycling Unit Hacks . | . . . . . Scanalyzer . | . . . . . Garrison Access Hacks . | . . . . . Unauthorized Hacks . | . . . . . Terminals . | . . . . . Fabricators . | . . . . . Repair Stations . | . . . . . Recycling Units . | . . . . . Scanalyzers . | . . . . . Garrison Access . | . . . . . Data Cores Recovered . | . . . . . Used . | . . . . . Hacking Detections 1 | . 1 . . . Full Trace Events 1 | . 1 . . . Feedback Events . | . . . . . Feedback Blocked . | . . . . . Robot Schematics Acquired . | . . . . . Robots Built . | . . . . . Authchips . | . . . . . Time . | . . . . . Total Robot Build Rating . | . . . . . Part Schematics Acquired . | . . . . . Parts Built . | . . . . . Authchips . | . . . . . Time . | . . . . . Total Part Build Rating . | . . . . . Parts Repaired 1 | . 1 . . . Time 26 | . 26 . . . Parts Recycled . | . . . . . Recycled Matter . | . . . . . Retrieved Matter . | . . . . . Retrieved Components . | . . . . . Parts Scanalyzed . | . . . . . Part Schematics Acquired . | . . . . . Parts Damaged . | . . . . . Bothacking | -11 -10 -10 -10 -9 ------------ Run | Yrd Mat Min Exi Min Used RIF Installer . | . . . . . Robots Hacked 9 | . . 6 3 . Non-combat 4 | . . 4 . . Combat 5 | . . 2 3 . Robot Hacks Applied 11 | . . 7 4 . parse_system 7 | . . 3 4 . no_distress 4 | . . 4 . . Relay Couplers Released . | . . . . . Fabnet Peak Effective % . | . . . . . Robots Rewired . | . . . . . Allies Hacked . | . . . . . Hacks Repelled . | . . . . . Allies | -11 -10 -10 -10 -9 -------- Run | Yrd Mat Min Exi Min Total Allies 3 | . . 1 . 2 Largest Group 2 | . . 1 1 2 Highest-Rated Group 45 | . . 31 31 45 Highest-Rated Ally 31 | . . 31 31 31 Total Orders . | . . . . . Ally Attacks 14 | . . 7 . 7 Total Damage 230 | . . 148 . 82 Kills 2 | . . 2 . . Allies Corrupted . | . . . . . Allies Melted 1 | . . . . 1 Intel | -11 -10 -10 -10 -9 ------- Run | Yrd Mat Min Exi Min Robot Analysis Total . | . . . . . Derelict Logs Recovered 4 | . . 2 . 2 Drone Launches . | . . . . . Drone Recoveries . | . . . . . Exploration | -11 -10 -10 -10 -9 ------------- Run | Yrd Mat Min Exi Min Turns Passed 3450 | 38 921 1107 914 470 Spaces Moved 2866 | 38 875 922 724 307 Core 7 | 7 . . . . Treads . | . . . . . Legs 1768 | . . 737 724 307 Wheels 1091 | 31 875 185 . . Hover . | . . . . . Flight . | . . . . . Fastest Speed 50 | 50 80 80 120 120 Average Speed 104 | 74 80 111 120 120 Slowest Speed 120 | 80 80 120 120 120 Overloaded Moves . | . . . . . Propulsion Burnouts . | . . . . . Robots Hopped 7 | . . 7 . . Cave-ins Triggered . | . . . . . Exploration Rate (%) 72 | 3 97 99 94 67 Regions Visited 4 Branch Regions 3 Pre-discovered Areas 3 | . . 1 1 1 Known Exits Taken 3 | . 1 1 1 . Unknown Exits Taken 1 | 1 . . . . Scrap Searched 4 | . . 3 . 1 Spaces Dug 18 | . 18 . . . Terrain Destroyed 116 | . 87 22 . 7 Melee . | . . . . . Projectile 19 | . 19 . . . AOE 97 | . 68 22 . 7 Terrain Rammed . | . . . . . Walls Destroyed . | . . . . . Machines Disabled . | . . . . . Actions | -11 -10 -10 -10 -9 --------- Run | Yrd Mat Min Exi Min Total 3179 | 44 990 986 767 392 Wait 175 | 1 26 49 34 65 Move 2848 | 37 874 907 723 307 Hop 7 | . . 7 . . Pick Up 16 | . 10 3 2 1 Fast Attach 10 | 6 2 2 . . Attach 3 | . 3 . . . Detach 3 | . 3 . . . Swap 12 | . 7 3 1 1 Drop 19 | . 10 6 2 1 Fire 72 | . 55 . . 17 Melee 14 | . . 9 5 . Ram . | . . . . . Kick . | . . . . . Crush . | . . . . . Escape Stasis . | . . . . . Rewire . | . . . . . Trap . | . . . . . Miscellaneous . | . . . . . Route ------- -11/Scrapyard -10/Materials (discovered 4 exits: *Mat x3 / *Min) -10/Mines (discovered 3 exits: *Mat x2 / *Exi) -10/Exiles (discovered 2 exits: *Min x2) -9/Mines (discovered 2 exits: *Mat x2) History --------- Turn | Location | Event 26 | -11/Scrapyard | Discovered new exit (range 15) 39 | -11/Scrapyard | Entered Materials 214 | -10/Materials | Discovered new exit (range 7) 302 | -10/Materials | Build established: Mutant 359 | -10/Materials | Discovered new exit (range 16) 447 | -10/Materials | Repaired Hover Unit 527 | -10/Materials | Core integrity fell below 50% 540 | -10/Materials | Discovered new exit (range 15) 789 | -10/Materials | Discovered new exit (range 16) 812 | -10/Materials | Identified exit to Materials 844 | -10/Materials | Identified exit to Mines 960 | -10/Materials | Entered Mines 1001 | -10/Mines | Joined a pair of Derelicts in attacking an 0b10 outpost 1063 | -10/Mines | Learned location of Storage (-9) 1119 | -10/Mines | Met a Derelict who couldn't figure out how to use a Trap Extractor 1275 | -10/Mines | Learned 2 Materials zone layouts 1437 | -10/Mines | Deemed a non-threat by the Exiles lab entrance 1438 | -10/Mines | Discovered new exit (range 5) 1442 | -10/Mines | Identified exit to Exiles 1684 | -10/Mines | Discovered exit to Materials (range 12) 1729 | -10/Mines | Escorted by a lone wolf Derelict 1807 | -10/Mines | Discovered exit to Materials (range 7) 2067 | -10/Mines | Entered Exiles 2067 | -10/Exiles | Accompanied by 1 ally 2123 | -10/Exiles | Discovered new exit (range 15) 2151 | -10/Exiles | Identified exit to Mines 2176 | -10/Exiles | Met 8R-AWN 2204 | -10/Exiles | Met EX-HEX 2272 | -10/Exiles | Met EX-DEC 2319 | -10/Exiles | Visited The Gauntlet 2493 | -10/Exiles | Learned location of Zion (-6) 2583 | -10/Exiles | Discovered exit to Mines (range 14) 2662 | -10/Exiles | Met EX-BIN 2685 | -10/Exiles | Aligned with FarCom system 2686 | -10/Exiles | Given EX-Vault access code 2753 | -10/Exiles | Opened EX-Vault 2766 | -10/Exiles | Found Prototype Energy Cannon 2768 | -10/Exiles | Identified Gui. Plasma Cannon 2803 | -10/Exiles | Warned to stay clear of 0b10 Research branches 2981 | -10/Exiles | Left Exiles lab with Gui. Plasma Cannon 2981 | -10/Exiles | Entered Mines 3112 | -9/Mines | Discovered new exit (range 6) 3118 | -9/Mines | Identified exit to Materials 3170 | -9/Mines | Learned 2 Materials zone layouts 3272 | -9/Mines | Build established: Assassin 3278 | -9/Mines | Learned Materials terminal intel 3279 | -9/Mines | Discovered exit to Materials (range 6) 3332 | -9/Mines | Received a Rocket Launcher from a helpful Derelict 3395 | -9/Mines | Assembled infested the area 3428 | -9/Mines | System corruption reached 10% 3431 | -9/Mines | Core integrity fell below 20% 3451 | -9/Mines | Destroyed by as-73596 with Assembled Heavy Rifle Last Messages --------------- 03431_ as-33997 destroyed. 03431_ as-09039 destroyed. 03431_ D-53 Grenadier destroyed. 03433_ as-77518 destroyed. 03435_ Lgt. Angular Momentum Engine destroyed. 03436_ R-06 Scavenger collects Cmb. Airjet. 03437_ The unstable cave ceiling collapses. 03437_ D-53 Grenadier destroyed. 03441_ as-19794 destroyed. 03445_ Overheating: Core damaged (-32). 03445_ as-90615 destroyed. 03446_ Overheating: Carbon-fiber Leg damaged (-1). 03447_ TM WAAIVNYMPER6GDHC=K1P8TM2X7L L5M1IL 03447_ Carbon-fiber Leg destroyed. 03448_ Overheating: Gui. Plasma Cannon damaged (-20). 03448_ Overheating: Signal Interpreter damaged (-10). 03448_ Overheating: Carbon-fiber Leg damaged (-33). 03449_ The unstable cave ceiling collapses. 03451_ Signal Interpreter broken. 03451_ Overheating: Short circuit. Map ----- +----------------------------------------------------+ | ###### ##### ##???# ##???## ##?? | | ##??#### #???## #??? | | ###### ] ####??## ### #??## #??? | | #######????#### #######???## #??# ##??? | | #?????????????## ##?????# #??# ##???? | | #??????????????## #??#### #??# ##????? | | ##########??????## #### #??# #?????? | | %%#???????#### ## #??# #?????? | | ########!#??????????## ##??# #?????? | | #??????# #???????????# ##?## #?????? | | #??????# #???????????# ### #?????? | | #??????# #???????????# ##?????? | | ##?????# #???????????# ###??????? | | ##????# #???????????## ##????????? | | #????# #????????????# ##?????????? | | #???## #????????????## ##??????????? | | ##??## ##???????????# % #???????????? | | ##??## #??????????## #???????????? | | ##??## ####??????## ##???????????? | | ????# #??????# *=r ##????????????? | | ????# ## #??????# *%* #######?????????????? | | ###### ##??#??????## !!% #???????????????????? | | #######???????????## ###?????????????????? | | #?????????????????# ##????????????????? | | ### #?????????????????# #????????????????? | | ??# #?????????????????## @ #########????????? | | ??#%#????????????????## % ??????? | | ??# #????????s???????# %$ ??????? | | ??#%#???????ss???????# % #######?????????? | | ??#%#???????????????## ##???????????????? | | ??#!#???????????????# ## ##????????????????? | | ??# #???????????????## #?????????????????? | | ??#!#???????????????# #?????????????????? | | ??#=#???????????????## #?????????????????? | | ??# #????????????????## #?????????????????? | | ?## #?????????????????## ##?????????????????? | | ## ##????????????????? #??????????????????? | | # #????????????????? ##??????????????????? | | #?????????????????# ##???????????????????? | | #?????????????????## ##????????????????????? | | #??????????????????####?????????????????????? | | #???????????????????????????????????????????? | | ##???????????????????????????????????????????? | | ##????????????????????????????????????????????? | | ####?????????????????????????????????????????????? | | ?????????????????????????????????????????????????? | | ?????????????????????????????????????????????????? | | ?????????????????????????????????????????????????? | | ?????????????????????????????????????????????????? | | ?????????????????????????????????????????????????? | +----------------------------------------------------+ Best States ------------- Heat Dissipation 25 Energy Generation 18 Energy Capacity 265 Matter Stores 300 Matter Capacity 300 Sight Range 16 Robot Scan Range 14 Terrain Scan Density 10 Evasion (%) 55 Item Schematics ----------------- None Robot Schematics ------------------ None Fabricated ------------ Nothing Alien Tech Used ----------------- None Achievements -------------- None Challenges ------------ None Game ------ Seed CouplerMultitargetingArchive Manual? 0 Play Time 00:44:39 Cumulative 15.3 hours Start 2024.03.20 @ 00:37:02 End 2024.03.20 @ 01:19:30 Sessions 1 Manual Loads 0 Difficulty Rogue Special Mode None Game No. 25 Rogue 25 Adventurer 0 Explorer 0 Win Type - Total 0 Types 0/0/0/0/0/0/0/0/0 Lore% 22 Gallery% 21 Achievement% 21 Wizard Run 0 Options --------- Layout 1 ASCII 0 Keyboard 1 Movement Numpad Keybinds 0 Fullscreen 1 Font 16/SmallcapsGlow Map View 55x38 Zoom Use 1% Tactical HUD 1 Map Filters NONE Filters NONE Steam 1 RUN: 339890ce-93e7-4454-9397-e0f848267cfb